[Event "Titled Tuesday Blitz September 13 Early 2022"]
[White "Melikyan, Gnel"]
[Black "Cardoso Cardoso, Jose Gabriel"]
[WhiteFideId "54109990"]
[BlackFideId "4430492"]
[WhiteElo "1772"]
[BlackElo "2485"]
[Result "0-1"]
[Round "07"]
[TimeControl "180+1"]
[Date "2022.09.13"]
[WhiteClock "0:00:02"]
[BlackClock "0:00:09"]

1. e4 {[%clk 0:02:56]}  g6 {[%clk 0:02:52]} 2. Nc3 {[%clk 0:02:53]}  Bg7 {[%clk 0:02:49]} 3. b3 {[%clk 0:02:52]}  c5 {[%clk 0:02:44]} 4. Bb2 {[%clk 0:02:52]}  Nc6 {[%clk 0:02:41]} 5. g3 {[%clk 0:02:48]}  h5 {[%clk 0:02:13]} 6. h4 {[%clk 0:02:38]}  d6 {[%clk 0:02:05]} 7. Bg2 {[%clk 0:02:23]}  Bg4 {[%clk 0:02:01]} 8. Bf3 {[%clk 0:02:18]}  Bd7 {[%clk 0:01:57]} 9. Nge2 {[%clk 0:02:05]}  Ne5 {[%clk 0:01:56]} 10. Bg2 {[%clk 0:02:02]}  Bg4 {[%clk 0:01:55]} 11. Nd5 {[%clk 0:01:48]}  Rh7 {[%clk 0:01:10]} 12. Rb1 {[%clk 0:01:21]}  Nf3+ {[%clk 0:01:01]} 13. Kf1 {[%clk 0:01:17]}  Bxb2 {[%clk 0:00:53]} 14. Rxb2 {[%clk 0:01:16]}  e6 {[%clk 0:00:53]} 15. Ne3 {[%clk 0:01:11]}  Qf6 {[%clk 0:00:48]} 16. c3 {[%clk 0:01:00]}  Ne7 {[%clk 0:00:40]} 17. Nxg4 {[%clk 0:00:52]}  hxg4 {[%clk 0:00:40]} 18. Nf4 {[%clk 0:00:32]}  Nc6 {[%clk 0:00:33]} 19. Bxf3 {[%clk 0:00:19]}  gxf3 {[%clk 0:00:32]} 20. Nh3 {[%clk 0:00:16]}  Rh5 {[%clk 0:00:24]} 21. Kg1 {[%clk 0:00:13]}  Ne5 {[%clk 0:00:19]} 22. d4 {[%clk 0:00:13]}  cxd4 {[%clk 0:00:18]} 23. Qxd4 {[%clk 0:00:13]}  Rd8 {[%clk 0:00:14]} 24. Nf4 {[%clk 0:00:13]}  Rh8 {[%clk 0:00:13]} 25. Rd2 {[%clk 0:00:13]}  g5 {[%clk 0:00:13]} 26. hxg5 {[%clk 0:00:13]}  Rxh1+ {[%clk 0:00:13]} 27. Kxh1 {[%clk 0:00:13]}  Qxg5 {[%clk 0:00:12]} 28. Qxa7 {[%clk 0:00:13]}  Ng4 {[%clk 0:00:09]} 29. Kg1 {[%clk 0:00:02]}  Qh6 {[%clk 0:00:08]} 30. Qa4+ {[%clk 0:00:02]}  Kf8 {[%clk 0:00:09]} 0-1


[Site "https://www.chess.com"]

[Event "Titled Tuesday Blitz September 13 Early 2022"]
[White "Narayanan, Srinath"]
[Black "Aloma Vidal, Robert"]
[WhiteFideId "5018420"]
[BlackFideId "2260409"]
[WhiteElo "2459"]
[BlackElo "2435"]
[Result "1-0"]
[Round "07"]
[TimeControl "180+1"]
[Date "2022.09.13"]
[WhiteClock "0:00:14"]
[BlackClock "0:00:08"]

1. Nf3 {[%clk 0:03:00]}  d5 {[%clk 0:02:56]} 2. e3 {[%clk 0:03:00]}  Nf6 {[%clk 0:02:55]} 3. c4 {[%clk 0:03:01]}  e6 {[%clk 0:02:54]} 4. b3 {[%clk 0:03:01]}  Bd6 {[%clk 0:02:54]} 5. Bb2 {[%clk 0:03:02]}  O-O {[%clk 0:02:54]} 6. Nc3 {[%clk 0:03:01]}  Nbd7 {[%clk 0:02:52]} 7. Rc1 {[%clk 0:03:01]}  c6 {[%clk 0:02:52]} 8. g3 {[%clk 0:02:57]}  e5 {[%clk 0:02:51]} 9. cxd5 {[%clk 0:02:55]}  cxd5 {[%clk 0:02:51]} 10. Nb5 {[%clk 0:02:51]}  Bb8 {[%clk 0:02:51]} 11. d4 {[%clk 0:02:51]}  e4 {[%clk 0:02:50]} 12. Ne5 {[%clk 0:02:52]}  a6 {[%clk 0:02:42]} 13. Nxd7 {[%clk 0:02:51]}  Bxd7 {[%clk 0:02:39]} 14. Nc3 {[%clk 0:02:51]}  Bd6 {[%clk 0:02:26]} 15. Bg2 {[%clk 0:02:46]}  Re8 {[%clk 0:02:16]} 16. O-O {[%clk 0:02:46]}  Bg4 {[%clk 0:02:14]} 17. f3 {[%clk 0:02:42]}  exf3 {[%clk 0:02:12]} 18. Bxf3 {[%clk 0:02:43]}  Bxf3 {[%clk 0:02:09]} 19. Qxf3 {[%clk 0:02:43]}  Bb4 {[%clk 0:02:05]} 20. Na4 {[%clk 0:02:32]}  Qe7 {[%clk 0:01:58]} 21. Nc5 {[%clk 0:02:09]}  Bd2 {[%clk 0:01:49]} 22. Rc2 {[%clk 0:02:09]}  Qxe3+ {[%clk 0:01:47]} 23. Kg2 {[%clk 0:01:59]}  b6 {[%clk 0:01:45]} 24. Qxe3 {[%clk 0:01:43]}  Bxe3 {[%clk 0:01:45]} 25. Na4 {[%clk 0:01:44]}  Re6 {[%clk 0:01:41]} 26. Re1 {[%clk 0:01:41]}  Rae8 {[%clk 0:01:41]} 27. Rce2 {[%clk 0:01:37]}  Nd7 {[%clk 0:01:38]} 28. Rc2 {[%clk 0:01:24]}  b5 {[%clk 0:01:24]} 29. Nc5 {[%clk 0:01:22]}  Nxc5 {[%clk 0:01:22]} 30. dxc5 {[%clk 0:01:23]}  d4 {[%clk 0:01:12]} 31. Rd1 {[%clk 0:01:22]}  h5 {[%clk 0:00:58]} 32. Bxd4 {[%clk 0:00:40]}  Bxd4 {[%clk 0:00:58]} 33. Rxd4 {[%clk 0:00:41]}  Re2+ {[%clk 0:00:58]} 34. Rxe2 {[%clk 0:00:41]}  Rxe2+ {[%clk 0:00:59]} 35. Kf3 {[%clk 0:00:40]}  Rxa2 {[%clk 0:00:59]} 36. h4 {[%clk 0:00:40]}  a5 {[%clk 0:00:54]} 37. Ke4 {[%clk 0:00:39]}  a4 {[%clk 0:00:43]} 38. bxa4 {[%clk 0:00:37]}  bxa4 {[%clk 0:00:44]} 39. Kd5 {[%clk 0:00:30]}  Kf8 {[%clk 0:00:39]} 40. Kd6 {[%clk 0:00:23]}  a3 {[%clk 0:00:33]} 41. Ra4 {[%clk 0:00:21]}  Rd2+ {[%clk 0:00:32]} 42. Kc7 {[%clk 0:00:21]}  a2 {[%clk 0:00:32]} 43. c6 {[%clk 0:00:21]}  Ke7 {[%clk 0:00:32]} 44. Ra7 {[%clk 0:00:17]}  Rb2 {[%clk 0:00:31]} 45. Kc8+ {[%clk 0:00:16]}  Ke8 {[%clk 0:00:28]} 46. c7 {[%clk 0:00:17]}  f6 {[%clk 0:00:27]} 47. Ra3 {[%clk 0:00:16]}  g5 {[%clk 0:00:25]} 48. Ra4 {[%clk 0:00:15]}  g4 {[%clk 0:00:19]} 49. Re4+ {[%clk 0:00:14]}  Kf7 {[%clk 0:00:19]} 50. Ra4 {[%clk 0:00:15]}  Ke7 {[%clk 0:00:18]} 51. Re4+ {[%clk 0:00:15]}  Kf7 {[%clk 0:00:17]} 52. Ra4 {[%clk 0:00:15]}  f5 {[%clk 0:00:11]} 53. Kd7 {[%clk 0:00:14]}  Rd2+ {[%clk 0:00:12]} 54. Kc6 {[%clk 0:00:14]}  Rc2+ {[%clk 0:00:12]} 55. Kd6 {[%clk 0:00:15]}  Rd2+ {[%clk 0:00:12]} 56. Ke5 {[%clk 0:00:14]}  Rc2 {[%clk 0:00:09]} 57. Ra7 {[%clk 0:00:14]}  Ke7 {[%clk 0:00:08]} 58. c8=Q+ {[%clk 0:00:14]} 1-0


[Site "https://www.chess.com"]

[Event "Titled Tuesday Blitz September 13 Early 2022"]
[White "Piesik, Piotr"]
[Black "Kravtsiv, Martyn"]
[WhiteFideId "1136194"]
[BlackFideId "14113147"]
[WhiteElo "2221"]
[BlackElo "2694"]
[Result "1-0"]
[Round "07"]
[TimeControl "180+1"]
[Date "2022.09.13"]
[WhiteClock "0:00:04"]
[BlackClock "0:00:01"]

1. Nf3 {[%clk 0:03:00]}  Nf6 {[%clk 0:02:56]} 2. g3 {[%clk 0:03:00]}  b6 {[%clk 0:02:53]} 3. Bg2 {[%clk 0:03:00]}  Bb7 {[%clk 0:02:53]} 4. O-O {[%clk 0:03:01]}  g6 {[%clk 0:02:52]} 5. c4 {[%clk 0:03:02]}  Bg7 {[%clk 0:02:53]} 6. Nc3 {[%clk 0:03:02]}  O-O {[%clk 0:02:53]} 7. d3 {[%clk 0:03:03]}  d6 {[%clk 0:02:48]} 8. e4 {[%clk 0:03:03]}  Nbd7 {[%clk 0:02:47]} 9. Ne1 {[%clk 0:02:59]}  e5 {[%clk 0:02:37]} 10. f4 {[%clk 0:02:58]}  exf4 {[%clk 0:02:36]} 11. gxf4 {[%clk 0:02:57]}  Nh5 {[%clk 0:02:32]} 12. d4 {[%clk 0:02:42]}  f5 {[%clk 0:02:28]} 13. e5 {[%clk 0:02:41]}  Bxg2 {[%clk 0:02:27]} 14. Nxg2 {[%clk 0:02:42]}  c5 {[%clk 0:02:26]} 15. dxc5 {[%clk 0:02:31]}  dxe5 {[%clk 0:02:21]} 16. Qd5+ {[%clk 0:02:19]}  Kh8 {[%clk 0:02:19]} 17. c6 {[%clk 0:02:19]}  Nc5 {[%clk 0:02:18]} 18. fxe5 {[%clk 0:02:16]}  Qe7 {[%clk 0:02:12]} 19. Qd6 {[%clk 0:02:02]}  Qxe5 {[%clk 0:02:09]} 20. Qxe5 {[%clk 0:02:01]}  Bxe5 {[%clk 0:02:10]} 21. Be3 {[%clk 0:01:59]}  Rac8 {[%clk 0:02:01]} 22. Rae1 {[%clk 0:01:52]}  Nd3 {[%clk 0:01:59]} 23. Re2 {[%clk 0:01:41]}  Rxc6 {[%clk 0:01:58]} 24. Bh6 {[%clk 0:01:35]}  Re8 {[%clk 0:01:57]} 25. Rd1 {[%clk 0:01:32]}  Rd6 {[%clk 0:01:34]} 26. Nb5 {[%clk 0:01:17]}  Rdd8 {[%clk 0:01:20]} 27. Kf1 {[%clk 0:01:14]}  a6 {[%clk 0:01:13]} 28. Na7 {[%clk 0:01:11]}  f4 {[%clk 0:01:05]} 29. Nh4 {[%clk 0:01:07]}  Bf6 {[%clk 0:00:57]} 30. Rxd3 {[%clk 0:00:54]}  Rxe2 {[%clk 0:00:55]} 31. Rxd8+ {[%clk 0:00:49]}  Bxd8 {[%clk 0:00:54]} 32. Kxe2 {[%clk 0:00:50]}  Bxh4 {[%clk 0:00:53]} 33. Kf3 {[%clk 0:00:45]}  Bf6 {[%clk 0:00:44]} 34. b4 {[%clk 0:00:40]}  Be5 {[%clk 0:00:42]} 35. Nc8 {[%clk 0:00:34]}  b5 {[%clk 0:00:37]} 36. cxb5 {[%clk 0:00:31]}  axb5 {[%clk 0:00:36]} 37. Na7 {[%clk 0:00:32]}  Kg8 {[%clk 0:00:34]} 38. Nxb5 {[%clk 0:00:31]}  Kf7 {[%clk 0:00:34]} 39. a4 {[%clk 0:00:30]}  Ke6 {[%clk 0:00:23]} 40. a5 {[%clk 0:00:30]}  Kd5 {[%clk 0:00:22]} 41. a6 {[%clk 0:00:25]}  Kc6 {[%clk 0:00:22]} 42. a7 {[%clk 0:00:25]}  Kb7 {[%clk 0:00:22]} 43. Bf8 {[%clk 0:00:22]}  Nf6 {[%clk 0:00:21]} 44. Bc5 {[%clk 0:00:21]}  g5 {[%clk 0:00:20]} 45. Na3 {[%clk 0:00:14]}  g4+ {[%clk 0:00:19]} 46. Kg2 {[%clk 0:00:13]}  Ne4 {[%clk 0:00:19]} 47. Nc4 {[%clk 0:00:03]}  Bc7 {[%clk 0:00:18]} 48. Bd4 {[%clk 0:00:02]}  h5 {[%clk 0:00:18]} 49. Na5+ {[%clk 0:00:01]}  Bxa5 {[%clk 0:00:14]} 50. bxa5 {[%clk 0:00:02]}  f3+ {[%clk 0:00:13]} 51. Kf1 {[%clk 0:00:01]}  Nd6 {[%clk 0:00:14]} 52. Kf2 {[%clk 0:00:01]}  Nb5 {[%clk 0:00:14]} 53. Be3 {[%clk 0:00:01]}  Nxa7 {[%clk 0:00:13]} 54. Kg3 {[%clk 0:00:02]}  Nc6 {[%clk 0:00:13]} 55. Kh4 {[%clk 0:00:02]}  Ne5 {[%clk 0:00:05]} 56. Kxh5 {[%clk 0:00:02]}  Ka6 {[%clk 0:00:02]} 57. Kg5 {[%clk 0:00:02]}  Kxa5 {[%clk 0:00:02]} 58. Kf4 {[%clk 0:00:02]}  Nc4 {[%clk 0:00:01]} 59. Bf2 {[%clk 0:00:02]}  Nd2 {[%clk 0:00:01]} 60. Kxg4 {[%clk 0:00:02]}  Ne4 {[%clk 0:00:01]} 61. Kxf3 {[%clk 0:00:02]}  Nf6 {[%clk 0:00:02]} 62. Kf4 {[%clk 0:00:02]}  Kb5 {[%clk 0:00:01]} 63. Kf5 {[%clk 0:00:02]}  Ng8 {[%clk 0:00:01]} 64. h4 {[%clk 0:00:02]}  Kc6 {[%clk 0:00:02]} 65. Ke6 {[%clk 0:00:03]}  Nh6 {[%clk 0:00:01]} 66. Be3 {[%clk 0:00:03]}  Ng4 {[%clk 0:00:01]} 67. Bg5 {[%clk 0:00:03]}  Kc5 {[%clk 0:00:01]} 68. Kf5 {[%clk 0:00:04]} 1-0


[Site "https://www.chess.com"]

[Event "Titled Tuesday Blitz September 13 Early 2022"]
[White "Rustemov, Alexander"]
[Black "Halkias, Stelios"]
[WhiteFideId "4119002"]
[BlackFideId "4201809"]
[WhiteElo "2858"]
[BlackElo "2453"]
[Result "1/2-1/2"]
[Round "07"]
[TimeControl "180+1"]
[Date "2022.09.13"]
[WhiteClock "0:00:10"]
[BlackClock "0:00:15"]

1. d4 {[%clk 0:03:00]}  Nf6 {[%clk 0:02:59]} 2. c4 {[%clk 0:03:01]}  g6 {[%clk 0:02:59]} 3. Nf3 {[%clk 0:03:01]}  Bg7 {[%clk 0:02:59]} 4. g3 {[%clk 0:03:02]}  c5 {[%clk 0:02:59]} 5. Bg2 {[%clk 0:03:02]}  cxd4 {[%clk 0:02:59]} 6. Nxd4 {[%clk 0:03:02]}  Nc6 {[%clk 0:02:59]} 7. O-O {[%clk 0:03:02]}  h5 {[%clk 0:02:59]} 8. h4 {[%clk 0:02:59]}  O-O {[%clk 0:02:42]} 9. Nc3 {[%clk 0:02:58]}  Ng4 {[%clk 0:02:42]} 10. e3 {[%clk 0:02:57]}  Nge5 {[%clk 0:02:39]} 11. b3 {[%clk 0:02:56]}  d6 {[%clk 0:02:39]} 12. Bb2 {[%clk 0:02:55]}  Bg4 {[%clk 0:02:39]} 13. f3 {[%clk 0:02:55]}  Bd7 {[%clk 0:02:38]} 14. Qd2 {[%clk 0:02:53]}  Rc8 {[%clk 0:02:38]} 15. Rac1 {[%clk 0:02:52]}  a6 {[%clk 0:02:39]} 16. Nd5 {[%clk 0:02:37]}  e6 {[%clk 0:02:36]} 17. Nf4 {[%clk 0:02:31]}  Qe7 {[%clk 0:02:37]} 18. Rfd1 {[%clk 0:02:30]}  Rfd8 {[%clk 0:02:37]} 19. e4 {[%clk 0:02:23]}  Nxd4 {[%clk 0:02:29]} 20. Bxd4 {[%clk 0:02:22]}  Bc6 {[%clk 0:02:24]} 21. Bb6 {[%clk 0:02:11]}  Rd7 {[%clk 0:02:17]} 22. Kh2 {[%clk 0:02:07]}  Bh6 {[%clk 0:02:09]} 23. Be3 {[%clk 0:02:06]}  Bxe4 {[%clk 0:01:53]} 24. Rf1 {[%clk 0:01:19]}  Kh7 {[%clk 0:01:16]} 25. fxe4 {[%clk 0:01:00]}  Ng4+ {[%clk 0:01:16]} 26. Kh1 {[%clk 0:01:01]}  Nxe3 {[%clk 0:01:16]} 27. Qxe3 {[%clk 0:01:00]}  e5 {[%clk 0:01:16]} 28. Qf2 {[%clk 0:00:56]}  exf4 {[%clk 0:01:13]} 29. gxf4 {[%clk 0:00:56]}  Rdc7 {[%clk 0:01:07]} 30. Rcd1 {[%clk 0:00:54]}  b5 {[%clk 0:01:06]} 31. e5 {[%clk 0:00:50]}  dxe5 {[%clk 0:01:03]} 32. f5 {[%clk 0:00:50]}  bxc4 {[%clk 0:01:02]} 33. bxc4 {[%clk 0:00:42]}  Rxc4 {[%clk 0:01:00]} 34. fxg6+ {[%clk 0:00:41]}  fxg6 {[%clk 0:00:43]} 35. Qf7+ {[%clk 0:00:40]}  Qxf7 {[%clk 0:00:42]} 36. Rxf7+ {[%clk 0:00:41]}  Kh8 {[%clk 0:00:38]} 37. Rdd7 {[%clk 0:00:34]}  Rxh4+ {[%clk 0:00:38]} 38. Kg1 {[%clk 0:00:34]}  Be3+ {[%clk 0:00:36]} 39. Kf1 {[%clk 0:00:34]}  Rf4+ {[%clk 0:00:36]} 40. Ke2 {[%clk 0:00:31]}  Rxf7 {[%clk 0:00:35]} 41. Rxf7 {[%clk 0:00:30]}  Rc2+ {[%clk 0:00:34]} 42. Kf1 {[%clk 0:00:30]}  Bd4 {[%clk 0:00:29]} 43. Be4 {[%clk 0:00:30]}  h4 {[%clk 0:00:25]} 44. Bxg6 {[%clk 0:00:29]}  Kg8 {[%clk 0:00:25]} 45. Rh7 {[%clk 0:00:27]}  Rf2+ {[%clk 0:00:25]} 46. Ke1 {[%clk 0:00:26]}  Rf4 {[%clk 0:00:25]} 47. Ke2 {[%clk 0:00:20]}  Rg4 {[%clk 0:00:23]} 48. Bf5 {[%clk 0:00:16]}  Rg5 {[%clk 0:00:21]} 49. Be4 {[%clk 0:00:13]}  Rg4 {[%clk 0:00:21]} 50. Bf5 {[%clk 0:00:12]}  Rg2+ {[%clk 0:00:19]} 51. Kd3 {[%clk 0:00:12]}  Rxa2 {[%clk 0:00:19]} 52. Rxh4 {[%clk 0:00:11]}  Ra3+ {[%clk 0:00:19]} 53. Ke4 {[%clk 0:00:10]}  Kg7 {[%clk 0:00:19]} 54. Rg4+ {[%clk 0:00:10]}  Kf6 {[%clk 0:00:20]} 55. Rg6+ {[%clk 0:00:10]}  Kf7 {[%clk 0:00:20]} 56. Rc6 {[%clk 0:00:10]}  Ra5 {[%clk 0:00:19]} 57. Be6+ {[%clk 0:00:10]}  Ke7 {[%clk 0:00:19]} 58. Bc4 {[%clk 0:00:10]}  Ra3 {[%clk 0:00:16]} 59. Rxa6 {[%clk 0:00:10]}  Rxa6 {[%clk 0:00:16]} 60. Bxa6 {[%clk 0:00:10]}  Bb2 {[%clk 0:00:15]} 1/2-1/2


[Site "https://www.chess.com"]

[Event "Titled Tuesday Blitz September 13 Early 2022"]
[White "Sadhwani, Raunak"]
[Black "Timmermans, Mark"]
[WhiteFideId "35093487"]
[BlackFideId "1026399"]
[WhiteElo "2656"]
[BlackElo "2460"]
[Result "1-0"]
[Round "07"]
[TimeControl "180+1"]
[Date "2022.09.13"]
[WhiteClock "0:00:13"]
[BlackClock "0:00:16"]

1. e4 {[%clk 0:03:00]}  e5 {[%clk 0:02:59]} 2. Nf3 {[%clk 0:03:01]}  Nc6 {[%clk 0:02:59]} 3. Bc4 {[%clk 0:03:01]}  Nf6 {[%clk 0:02:59]} 4. d3 {[%clk 0:03:02]}  Be7 {[%clk 0:02:58]} 5. O-O {[%clk 0:03:02]}  O-O {[%clk 0:02:59]} 6. Nc3 {[%clk 0:03:03]}  d6 {[%clk 0:02:58]} 7. a4 {[%clk 0:03:03]}  Kh8 {[%clk 0:02:58]} 8. a5 {[%clk 0:03:03]}  a6 {[%clk 0:02:58]} 9. h3 {[%clk 0:03:00]}  Ng8 {[%clk 0:02:58]} 10. Nd5 {[%clk 0:03:00]}  f5 {[%clk 0:02:58]} 11. c3 {[%clk 0:02:59]}  Bf6 {[%clk 0:02:58]} 12. Re1 {[%clk 0:02:55]}  Nce7 {[%clk 0:02:57]} 13. Nxf6 {[%clk 0:02:38]}  Nxf6 {[%clk 0:02:58]} 14. Bb3 {[%clk 0:02:37]}  Qe8 {[%clk 0:02:52]} 15. exf5 {[%clk 0:02:36]}  Bxf5 {[%clk 0:02:51]} 16. d4 {[%clk 0:02:36]}  e4 {[%clk 0:02:48]} 17. Nh2 {[%clk 0:02:32]}  d5 {[%clk 0:02:47]} 18. Nf1 {[%clk 0:02:31]}  Qg6 {[%clk 0:02:43]} 19. Ng3 {[%clk 0:02:31]}  c6 {[%clk 0:02:42]} 20. Bf4 {[%clk 0:02:29]}  Rae8 {[%clk 0:02:32]} 21. Bc2 {[%clk 0:02:29]}  Bc8 {[%clk 0:02:26]} 22. Be5 {[%clk 0:02:15]}  Nd7 {[%clk 0:02:19]} 23. Bc7 {[%clk 0:02:11]}  Nf5 {[%clk 0:02:12]} 24. Nxf5 {[%clk 0:01:20]}  Rxf5 {[%clk 0:02:05]} 25. Re3 {[%clk 0:01:19]}  Qf7 {[%clk 0:01:55]} 26. f3 {[%clk 0:01:08]}  Rg5 {[%clk 0:01:50]} 27. fxe4 {[%clk 0:01:04]}  Nc5 {[%clk 0:01:30]} 28. Be5 {[%clk 0:00:48]}  Nxe4 {[%clk 0:01:26]} 29. Bxe4 {[%clk 0:00:48]}  dxe4 {[%clk 0:01:27]} 30. Qe2 {[%clk 0:00:49]}  Qg6 {[%clk 0:01:16]} 31. Rf1 {[%clk 0:00:46]}  Kg8 {[%clk 0:01:10]} 32. Kh2 {[%clk 0:00:44]}  Be6 {[%clk 0:00:50]} 33. Rf4 {[%clk 0:00:41]}  h5 {[%clk 0:00:41]} 34. Qf2 {[%clk 0:00:22]}  Rf5 {[%clk 0:00:32]} 35. Rxf5 {[%clk 0:00:19]}  Bxf5 {[%clk 0:00:33]} 36. Rg3 {[%clk 0:00:19]}  e3 {[%clk 0:00:20]} 37. Qe2 {[%clk 0:00:15]}  Bd3 {[%clk 0:00:16]} 38. Qxe3 {[%clk 0:00:13]}  Qh7 {[%clk 0:00:16]} 39. Qxd3 {[%clk 0:00:13]} 1-0


[Site "https://www.chess.com"]

[Event "Titled Tuesday Blitz September 13 Early 2022"]
[White "Salem, A.R. Saleh"]
[Black "Al-Tarboush, Ward"]
[WhiteFideId "9301348"]
[BlackFideId "7601450"]
[WhiteElo "2628"]
[BlackElo "2234"]
[Result "1-0"]
[Round "07"]
[TimeControl "180+1"]
[Date "2022.09.13"]
[WhiteClock "0:02:00"]
[BlackClock "0:00:03"]

1. d4 {[%clk 0:03:00]}  d5 {[%clk 0:02:58]} 2. c4 {[%clk 0:03:01]}  c6 {[%clk 0:02:58]} 3. Nc3 {[%clk 0:03:02]}  Nf6 {[%clk 0:02:57]} 4. Nf3 {[%clk 0:03:02]}  dxc4 {[%clk 0:02:56]} 5. e4 {[%clk 0:03:03]}  b5 {[%clk 0:02:56]} 6. e5 {[%clk 0:03:04]}  Nd5 {[%clk 0:02:56]} 7. a4 {[%clk 0:03:04]}  e6 {[%clk 0:02:56]} 8. Be2 {[%clk 0:03:05]}  Bb7 {[%clk 0:02:54]} 9. O-O {[%clk 0:03:05]}  Be7 {[%clk 0:02:54]} 10. Ne4 {[%clk 0:03:04]}  h6 {[%clk 0:02:49]} 11. Bd2 {[%clk 0:03:04]}  a6 {[%clk 0:02:48]} 12. b3 {[%clk 0:03:04]}  cxb3 {[%clk 0:02:48]} 13. Qxb3 {[%clk 0:03:05]}  Nd7 {[%clk 0:02:48]} 14. Ne1 {[%clk 0:03:06]}  Qb6 {[%clk 0:02:34]} 15. Nc2 {[%clk 0:03:00]}  c5 {[%clk 0:02:24]} 16. Qg3 {[%clk 0:03:00]}  g5 {[%clk 0:02:20]} 17. Rab1 {[%clk 0:02:44]}  Bc6 {[%clk 0:02:04]} 18. Nd6+ {[%clk 0:02:39]}  Bxd6 {[%clk 0:02:03]} 19. exd6 {[%clk 0:02:40]}  cxd4 {[%clk 0:02:02]} 20. Rfe1 {[%clk 0:02:25]}  Nf4 {[%clk 0:01:56]} 21. Bxf4 {[%clk 0:02:22]}  gxf4 {[%clk 0:01:56]} 22. Qxf4 {[%clk 0:02:23]}  Rg8 {[%clk 0:01:54]} 23. g3 {[%clk 0:02:23]}  e5 {[%clk 0:01:16]} 24. Bh5 {[%clk 0:02:22]}  O-O-O {[%clk 0:01:14]} 25. Qd2 {[%clk 0:02:20]}  Qc5 {[%clk 0:01:00]} 26. Nb4 {[%clk 0:02:17]}  Nb6 {[%clk 0:00:40]} 27. Nxc6 {[%clk 0:02:17]}  Qxc6 {[%clk 0:00:41]} 28. axb5 {[%clk 0:02:18]}  axb5 {[%clk 0:00:39]} 29. Bxf7 {[%clk 0:02:19]}  Rgf8 {[%clk 0:00:36]} 30. Rec1 {[%clk 0:02:18]}  Nc4 {[%clk 0:00:34]} 31. Be6+ {[%clk 0:02:18]}  Rd7 {[%clk 0:00:28]} 32. Qa2 {[%clk 0:02:12]}  Kd8 {[%clk 0:00:15]} 33. Rxc4 {[%clk 0:02:05]}  Qxd6 {[%clk 0:00:12]} 34. Rxb5 {[%clk 0:01:59]}  Qxe6 {[%clk 0:00:01]} 35. Rc8+ {[%clk 0:01:59]}  Ke7 {[%clk 0:00:01]} 36. Qxe6+ {[%clk 0:01:59]}  Kxe6 {[%clk 0:00:02]} 37. Rxf8 {[%clk 0:02:00]}  d3 {[%clk 0:00:03]} 38. Rb1 {[%clk 0:02:00]} 1-0


[Site "https://www.chess.com"]

[Event "Titled Tuesday Blitz September 13 Early 2022"]
[White "Sarana, Alexey"]
[Black "Samsonkin, Artiom"]
[WhiteFideId "24133795"]
[BlackFideId "13503111"]
[WhiteElo "2689"]
[BlackElo "2524"]
[Result "1-0"]
[Round "07"]
[TimeControl "180+1"]
[Date "2022.09.13"]
[WhiteClock "0:00:14"]
[BlackClock "0:00:01"]

1. c4 {[%clk 0:02:58]}  Nf6 {[%clk 0:02:57]} 2. Nc3 {[%clk 0:02:59]}  e6 {[%clk 0:02:52]} 3. d4 {[%clk 0:02:57]}  Bb4 {[%clk 0:02:51]} 4. e3 {[%clk 0:02:57]}  O-O {[%clk 0:02:51]} 5. Bd3 {[%clk 0:02:57]}  d5 {[%clk 0:02:51]} 6. a3 {[%clk 0:02:57]}  Bxc3+ {[%clk 0:02:51]} 7. bxc3 {[%clk 0:02:58]}  dxc4 {[%clk 0:02:41]} 8. Bxc4 {[%clk 0:02:59]}  c5 {[%clk 0:02:41]} 9. Ne2 {[%clk 0:02:59]}  e5 {[%clk 0:02:34]} 10. O-O {[%clk 0:02:51]}  Nc6 {[%clk 0:02:30]} 11. Bb2 {[%clk 0:02:17]}  Na5 {[%clk 0:02:15]} 12. Ba2 {[%clk 0:02:17]}  Be6 {[%clk 0:02:15]} 13. Bxe6 {[%clk 0:02:10]}  fxe6 {[%clk 0:02:15]} 14. dxe5 {[%clk 0:02:04]}  Ng4 {[%clk 0:02:04]} 15. Nf4 {[%clk 0:01:42]}  Qh4 {[%clk 0:01:25]} 16. h3 {[%clk 0:01:39]}  Nxe5 {[%clk 0:01:24]} 17. Nxe6 {[%clk 0:01:31]}  Rf6 {[%clk 0:00:47]} 18. Nf4 {[%clk 0:01:21]}  Nac4 {[%clk 0:00:42]} 19. Qd5+ {[%clk 0:01:18]}  Kh8 {[%clk 0:00:40]} 20. Rad1 {[%clk 0:01:16]}  Raf8 {[%clk 0:00:37]} 21. Bc1 {[%clk 0:01:12]}  b6 {[%clk 0:00:36]} 22. Qe4 {[%clk 0:00:41]}  g5 {[%clk 0:00:28]} 23. Rd5 {[%clk 0:00:41]}  Re8 {[%clk 0:00:12]} 24. Rfd1 {[%clk 0:00:35]}  gxf4 {[%clk 0:00:11]} 25. exf4 {[%clk 0:00:36]}  Rg8 {[%clk 0:00:11]} 26. Rxe5 {[%clk 0:00:31]}  Rfg6 {[%clk 0:00:05]} 27. Re8 {[%clk 0:00:21]}  Rxg2+ {[%clk 0:00:01]} 28. Qxg2 {[%clk 0:00:22]}  Rxe8 {[%clk 0:00:02]} 29. Qf3 {[%clk 0:00:19]}  Rg8+ {[%clk 0:00:02]} 30. Kf1 {[%clk 0:00:15]}  Qf6 {[%clk 0:00:02]} 31. f5 {[%clk 0:00:15]}  Ne5 {[%clk 0:00:02]} 32. Qe4 {[%clk 0:00:15]}  Nf7 {[%clk 0:00:03]} 33. Bf4 {[%clk 0:00:15]}  Qxc3 {[%clk 0:00:03]} 34. Qd5 {[%clk 0:00:14]}  Qf6 {[%clk 0:00:03]} 35. Re1 {[%clk 0:00:13]}  Rf8 {[%clk 0:00:02]} 36. Re6 {[%clk 0:00:13]}  Qa1+ {[%clk 0:00:02]} 37. Ke2 {[%clk 0:00:14]}  Qb2+ {[%clk 0:00:01]} 38. Bd2 {[%clk 0:00:14]} 1-0


[Site "https://www.chess.com"]